Workbook

Sheet Sheet1
A1: 附件
A2: 2024年河源江东新区公开招聘事业编制教师考试总成绩及进入体检 人员名单
A3: 序号 | B3: 准考证号 | C3: 岗位代码 | D3: 最终笔试成绩 | E3: 面试成绩 | F3: 总成绩 | G3: 排名 | H3: 是否进入体检 | I3: 备注
A4: 1 | B4: 20240100311 | C4: JD001 | D4: 77.75 | E4: 80.55 | F4: 79.15 | G4: 1 | H4: 是
A5: 2 | B5: 20240100303 | C5: JD001 | D5: 84.33 | E5: 73.15 | F5: 78.74 | G5: 2 | H5: 是
A6: 3 | B6: 20240100110 | C6: JD001 | D6: 78.26 | E6: 78.90 | F6: 78.58 | G6: 3 | H6: 是
A7: 4 | B7: 20240100314 | C7: JD001 | D7: 80.41 | E7: 74.70 | F7: 77.56 | G7: 4 | H7: 是
A8: 5 | B8: 20240100104 | C8: JD001 | D8: 81.03 | E8: 72.45 | F8: 76.74 | G8: 5
A9: 6 | B9: 20240100224 | C9: JD001 | D9: 80.85 | E9: 72.00 | F9: 76.43 | G9: 6
A10: 7 | B10: 20240100129 | C10: JD001 | D10: 78.82 | E10: 72.85 | F10: 75.84 | G10: 7
A11: 8 | B11: 20240100121 | C11: JD001 | D11: 80.95 | E11: 66.40 | F11: 73.68 | G11: 8
A12: 9 | B12: 20240100130 | C12: JD001 | D12: 77.85 | E12: 68.65 | F12: 73.25 | G12: 9
A13: 10 | B13: 20240100201 | C13: JD001 | D13: 78.69 | E13: 66.35 | F13: 72.52 | G13: 10
A14: 11 | B14: 20240100115 | C14: JD001 | D14: 75.07 | E14: 64.40 | F14: 69.74 | G14: 11
A15: 12 | B15: 20240100128 | C15: JD001 | D15: 76.95 | E15: 缺考 | F15: =D15*0.5 -> 38.48 | G15: 12
A16: 13 | B16: 20240100322 | C16: JD002 | D16: 80.75 | E16: 79.45 | F16: 80.10 | G16: 1 | H16: 是
A17: 14 | B17: 20240100326 | C17: JD002 | D17: 71.03 | E17: 79.10 | F17: 75.07 | G17: 2 | H17: 是
A18: 15 | B18: 20240100327 | C18: JD002 | D18: 79.22 | E18: 70.65 | F18: 74.94 | G18: 3
A19: 16 | B19: 20240100402 | C19: JD002 | D19: 71.09 | E19: 75.40 | F19: 73.25 | G19: 4
A20: 17 | B20: 20240100417 | C20: JD003 | D20: 77.45 | E20: 73.55 | F20: 75.50 | G20: 1 | H20: 是
A21: 18 | B21: 20240100423 | C21: JD003 | D21: 80.53 | E21: 缺考 | F21: =D21*0.5 -> 40.27 | G21: 2
A22: 19 | B22: 20240100416 | C22: JD003 | D22: 76.40 | E22: 缺考 | F22: =D22*0.5 -> 38.20 | G22: 3
A23: 20 | B23: 20240100427 | C23: JD004 | D23: 77.37 | E23: 76.10 | F23: =(D23+E23)/2 -> 76.74 | G23: 1 | H23: 是
A24: 21 | B24: 20240100428 | C24: JD004 | D24: 76.01 | E24: 67.70 | F24: 71.86 | G24: 2
A25: 22 | B25: 20240100502 | C25: JD005 | D25: 72.06 | E25: 74.35 | F25: 73.21 | G25: 1 | H25: 是
A26: 23 | B26: 20240100430 | C26: JD005 | D26: 72.57 | E26: 70.45 | F26: 71.51 | G26: 2 | H26: 是
A27: 24 | B27: 20240100810 | C27: JD006 | D27: 82.44 | E27: 76.30 | F27: 79.37 | G27: 1 | H27: 是
A28: 25 | B28: 20240100706 | C28: JD006 | D28: 78.69 | E28: 76.65 | F28: 77.67 | G28: 2 | H28: 是
A29: 26 | B29: 20240100528 | C29: JD006 | D29: 83.82 | E29: 67.80 | F29: 75.81 | G29: 3 | H29: 是
A30: 27 | B30: 20240100625 | C30: JD006 | D30: 82.23 | E30: 67.10 | F30: 74.67 | G30: 4
A31: 28 | B31: 20240100629 | C31: JD006 | D31: 81.54 | E31: 67.75 | F31: 74.65 | G31: 5
A32: 29 | B32: 20240100623 | C32: JD006 | D32: 80.25 | E32: 60.55 | F32: 70.40 | G32: 6
A33: 30 | B33: 20240100718 | C33: JD006 | D33: 80.73 | E33: 59.75 | F33: 70.24 | G33: 7
A34: 31 | B34: 20240100822 | C34: JD006 | D34: 81.23 | E34: 54.95 | F34: 68.09 | G34: 8
A35: 32 | B35: 20240100713 | C35: JD006 | D35: 79.04 | E35: 57.30 | F35: 68.17 | G35: 9
A36: 33 | B36: 20240101107 | C36: JD007 | D36: 75.27 | E36: 78.25 | F36: 76.76 | G36: 1 | H36: 是
A37: 34 | B37: 20240100926 | C37: JD007 | D37: 75.98 | E37: 77.40 | F37: 76.69 | G37: 2 | H37: 是
A38: 35 | B38: 20240100907 | C38: JD007 | D38: 71.72 | E38: 80.20 | F38: 75.96 | G38: 3 | H38: 是
A39: 36 | B39: 20240100930 | C39: JD007 | D39: 75.90 | E39: 75.00 | F39: 75.45 | G39: 4 | H39: 是
A40: 37 | B40: 20240100924 | C40: JD007 | D40: 68.84 | E40: 82.00 | F40: 75.42 | G40: 5
A41: 38 | B41: 20240100929 | C41: JD007 | D41: 78.02 | E41: 69.65 | F41: 73.84 | G41: 6
A42: 39 | B42: 20240101010 | C42: JD007 | D42: 72.30 | E42: 73.00 | F42: 72.65 | G42: 7
A43: 40 | B43: 20240101017 | C43: JD007 | D43: 71.52 | E43: 72.80 | F43: 72.16 | G43: 8
A44: 41 | B44: 20240101105 | C44: JD007 | D44: 80.61 | E44: 58.25 | F44: 69.43 | G44: 9
A45: 42 | B45: 20240101103 | C45: JD007 | D45: 70.85 | E45: 缺考 | F45: =D45*0.5 -> 35.43 | G45: 10
A46: 43 | B46: 20240101605 | C46: JD008 | D46: 90.59 | E46: 67.50 | F46: =(D46+E46)/2 -> 79.05 | G46: 1 | H46: 是
A47: 44 | B47: 20240101208 | C47: JD008 | D47: 82.59 | E47: 70.60 | F47: 76.60 | G47: 2
A48: 45 | B48: 20240101611 | C48: JD008 | D48: 82.88 | E48: 52.10 | F48: 67.49 | G48: 3
A49: 46 | B49: 20240101819 | C49: JD009 | D49: 81.71 | E49: 76.15 | F49: 78.93 | G49: 1 | H49: 是
A50: 47 | B50: 20240101928 | C50: JD009 | D50: 78.87 | E50: 74.95 | F50: 76.91 | G50: 2 | H50: 是
A51: 48 | B51: 20240101903 | C51: JD009 | D51: 76.78 | E51: 76.45 | F51: 76.62 | G51: 3
A52: 49 | B52: 20240101927 | C52: JD009 | D52: 78.37 | E52: 74.80 | F52: 76.59 | G52: 4
A53: 50 | B53: 20240101906 | C53: JD009 | D53: 78.29 | E53: 71.65 | F53: 74.97 | G53: 5
A54: 51 | B54: 20240101916 | C54: JD009 | D54: 79.13 | E54: 缺考 | F54: =D54*0.5 -> 39.57 | G54: 6
A55: 52 | B55: 20240102021 | C55: JD010 | D55: 78.57 | E55: 78.00 | F55: =(D55+E55)/2 -> 78.29 | G55: 1 | H55: 是
A56: 53 | B56: 20240102109 | C56: JD010 | D56: 81.84 | E56: 72.35 | F56: 77.10 | G56: 2 | H56: 是
A57: 54 | B57: 20240102121 | C57: JD010 | D57: 78.92 | E57: 74.15 | F57: 76.54 | G57: 3 | H57: 是
A58: 55 | B58: 20240102101 | C58: JD010 | D58: 76.65 | E58: 75.80 | F58: 76.23 | G58: 4
A59: 56 | B59: 20240102022 | C59: JD010 | D59: 78.29 | E59: 73.60 | F59: 75.95 | G59: 5
A60: 57 | B60: 20240102026 | C60: JD010 | D60: 79.05 | E60: 70.75 | F60: 74.90 | G60: 6
A61: 58 | B61: 20240102009 | C61: JD010 | D61: 76.28 | E61: 71.20 | F61: 73.74 | G61: 7
A62: 59 | B62: 20240102008 | C62: JD010 | D62: 75.72 | E62: 70.30 | F62: 73.01 | G62: 8
A63: 60 | B63: 20240102027 | C63: JD010 | D63: 78.32 | E63: 45.95 | F63: 62.14 | G63: 9
A64: 61 | B64: 20240102213 | C64: JD011 | D64: 81.05 | E64: 78.80 | F64: 79.93 | G64: 1 | H64: 是
A65: 62 | B65: 20240102421 | C65: JD011 | D65: 83.01 | E65: 75.00 | F65: 79.01 | G65: 2
A66: 63 | B66: 20240102525 | C66: JD011 | D66: 81.29 | E66: 76.35 | F66: 78.82 | G66: 3
A67: 64 | B67: 20240102709 | C67: JD012 | D67: 79.73 | E67: 81.05 | F67: 80.39 | G67: 1 | H67: 是
A68: 65 | B68: 20240102605 | C68: JD012 | D68: 82.31 | E68: 77.15 | F68: 79.73 | G68: 2 | H68: 是
A69: 66 | B69: 20240102628 | C69: JD012 | D69: 73.40 | E69: 82.35 | F69: 77.88 | G69: 3 | H69: 是
A70: 67 | B70: 20240102528 | C70: JD012 | D70: 71.43 | E70: 81.05 | F70: 76.24 | G70: 4 | H70: 是
A71: 68 | B71: 20240102707 | C71: JD012 | D71: 73.65 | E71: 76.65 | F71: 75.15 | G71: 5
A72: 69 | B72: 20240102526 | C72: JD012 | D72: 77.88 | E72: 72.35 | F72: 75.12 | G72: 6
A73: 70 | B73: 20240102706 | C73: JD012 | D73: 69.66 | E73: 79.10 | F73: 74.38 | G73: 7
A74: 71 | B74: 20240102529 | C74: JD012 | D74: 70.77 | E74: 74.55 | F74: 72.66 | G74: 8
A75: 72 | B75: 20240102703 | C75: JD012 | D75: 71.38 | E75: 70.40 | F75: 70.89 | G75: 9
A76: 73 | B76: 20240102702 | C76: JD012 | D76: 71.27 | E76: 69.20 | F76: 70.24 | G76: 10
A77: 74 | B77: 20240102613 | C77: JD012 | D77: 68.47 | E77: 68.80 | F77: 68.64 | G77: 11
A78: 75 | B78: 20240102616 | C78: JD012 | D78: 70.73 | E78: 缺考 | F78: =D78*0.5 -> 35.37 | G78: 12
A79: 76 | B79: 20240102823 | C79: JD013 | D79: 81.14 | E79: 78.70 | F79: 79.92 | G79: 1 | H79: 是
A80: 77 | B80: 20240103015 | C80: JD013 | D80: 83.53 | E80: 73.05 | F80: 78.29 | G80: 2 | H80: 是
A81: 78 | B81: 20240103006 | C81: JD013 | D81: 80.32 | E81: 75.80 | F81: 78.06 | G81: 3 | H81: 是
A82: 79 | B82: 20240102830 | C82: JD013 | D82: 79.91 | E82: 75.45 | F82: 77.68 | G82: 4
A83: 80 | B83: 20240102721 | C83: JD013 | D83: 80.25 | E83: 74.30 | F83: 77.28 | G83: 5
A84: 81 | B84: 20240103024 | C84: JD013 | D84: 79.29 | E84: 71.10 | F84: 75.20 | G84: 6
A85: 82 | B85: 20240102728 | C85: JD013 | D85: 78.45 | E85: 46.55 | F85: 62.50 | G85: 7
A86: 83 | B86: 20240102720 | C86: JD013 | D86: 80.39 | E86: 缺考 | F86: =D86*0.5 -> 40.20 | G86: 8
A87: 84 | B87: 20240102903 | C87: JD013 | D87: 79.60 | E87: 缺考 | F87: =D87*0.5 -> 39.80 | G87: 9
